bitfinex-derivatives/quotes_SOLF0:USTF0_20260117
["timestamp","ask_amount","ask_price","bid_price","bid_amount"]
[1768666370323,6.241,144.26,144.2,3.29537924]
[1768666371525,9.54128365,144.28,144.21,3.2515501]
[1768666372431,9.54128365,144.28,144.23,0.05042231]
[1768666378636,3.30108365,144.28,144.23,0.05042231]
[1768666381736,5.024068,144.28,144.23,0.05042231]
[1768666381938,3.14294904,144.27,144.23,0.05042231]
[1768666388847,4.86593339,144.27,144.23,0.05042231]
[1768666389048,3.14294904,144.26,144.23,0.05042231]
[1768666392746,4.86593339,144.28,144.23,0.05042231]
[1768666392946,3.14294904,144.27,144.23,0.05042231]
[1768666416375,11.20102909,144.29,144.23,3.25431568]
[1768666417663,3.23799217,144.28,144.23,3.25431568]
[1768666420369,3.23799217,144.28,144.23,0.05042231]
[1768666425876,9.47809217,144.28,144.23,0.05042231]
[1768666426076,3.23799217,144.26,144.19,3.20389337]
[1768666427678,0.05161878,144.24,144.19,3.20389337]
[1768666433196,0.05161878,144.24,144.19,9.44769337]
[1768666441898,0.05161878,144.24,144.2,6.2434]
[1768666442700,0.05161878,144.24,144.21,9.50965431]
[1768666442998,3.20053032,144.27,144.21,9.50965431]
[1768666443197,3.20053032,144.27,144.21,9.55784488]
[1768666478939,3.20053032,144.27,144.22,3.30820009]
[1768666494356,4.92412212,144.27,144.22,3.30820009]
[1768666501556,3.22605012,144.26,144.21,0.04819057]
[1768666502158,9.46705012,144.26,144.21,0.04819057]
[1768666502359,3.22605012,144.26,144.21,0.04819057]
[1768666520675,3.22605012,144.26,144.18,264.07518028]
[1768666520873,3.22605012,144.24,144.18,264.07518028]
[1768666522375,3.22605012,144.24,144.2,0.04652172]
[1768666526968,0.04526547,144.25,144.2,0.04652172]
[1768666527277,0.04526547,144.25,144.2,11.04954225]
[1768666528676,9.46267202,144.28,144.21,3.03536868]
[1768666528888,8.6753498,144.27,144.21,3.03536868]
[1768666529081,3.22237202,144.27,144.21,3.03536868]
[1768666530080,3.22237202,144.27,144.23,0.04947366]
[1768666537088,0.04720904,144.26,144.21,3.03536868]
[1768666537584,3.16162805,144.26,144.21,3.03536868]
[1768666540784,3.16162805,144.26,144.19,11.21971974]
[1768666541585,3.16162805,144.26,144.2,3.25156789]
[1768666542087,9.40262805,144.26,144.2,3.25156789]
[1768666542786,3.11441901,144.25,144.18,270.41586789]
[1768666542985,3.11441901,144.25,144.19,3.25156789]
[1768666543678,0.04499486,144.23,144.19,3.25156789]
[1768666554290,0.04499486,144.23,144.18,6.2443]
[1768666554593,3.05524204,144.23,144.17,3.07274416]
[1768666555290,3.05524204,144.23,144.17,9.31744416]
[1768666557599,3.05524204,144.23,144.17,3.07274416]
[1768666559195,3.01024718,144.22,144.16,261.06]
[1768666560690,3.01024718,144.21,144.16,261.06]
[1768666561291,3.01024718,144.21,144.15,3.07274416]
[1768666561691,0.05096107,144.2,144.15,3.07274416]
[1768666562591,3.06120825,144.2,144.15,3.07274416]
[1768666563292,9.30480825,144.2,144.15,3.07274416]
[1768666563601,3.01024718,144.19,144.13,264.13274416]
[1768666565299,3.01024718,144.19,144.13,3.07274416]
[1768666565705,3.01024718,144.18,144.11,3.07274416]
[1768666566804,0.04545153,144.16,144.11,3.07274416]
[1768666572600,3.05569871,144.16,144.11,3.07274416]
[1768666573207,9.30099871,144.16,144.08,272.20559601]
[1768666573402,3.01024718,144.15,144.08,272.20559601]
[1768666573604,3.01024718,144.15,144.09,3.07274416]
[1768666574402,0.04546881,144.13,144.09,3.07274416]
[1768666583206,6.29206881,144.13,144.08,264.41729325]
[1768666584208,6.29206881,144.13,144.09,3.25729325]
[1768666598414,6.29206881,144.13,144.06,262.94675467]
[1768666598609,6.2472,144.12,144.07,3.24463259]
[1768666610228,3.28835748,144.13,144.07,3.24463259]
[1768666611225,3.28835748,144.13,144.06,261.22]
[1768666611433,3.28835748,144.13,144.06,264.46463259]
[1768666611822,3.07759205,144.12,144.06,264.46463259]
[1768666613727,9.32459205,144.12,144.06,264.46463259]
[1768666614120,3.07759205,144.11,144.06,261.22]
[1768666614516,3.07759205,144.11,144.05,264.44292279]
[1768666615228,3.07759205,144.11,144.05,3.12292279]
[1768666615433,0.04525775,144.09,144.05,264.44292279]
[1768666616332,0.04525775,144.09,144.05,3.12292279]
[1768666616633,0.04525775,144.09,144.05,264.44292279]
[1768666618323,0.04525775,144.09,144.01,6.2514]
[1768666618324,6.29365775,144.09,144.01,6.2514]
[1768666618521,6.29365775,144.09,144.01,269.29815467]
[1768666618930,9.32599205,144.09,144.01,269.29815467]
[1768666619320,9.32599205,144.09,144.02,261.32]
[1768666619321,0.05152248,144.06,144.02,261.32]
[1768666619526,0.05152248,144.06,144.02,261.34]
[1768666619826,0.05152248,144.06,143.99,1.72675467]
[1768666620032,0.05152248,144.06,144.0,261.34]
[1768666620432,0.05152248,144.06,144.01,3.12292279]
[1768666621133,0.05152248,144.06,144.02,3.12292279]
[1768666623631,291.379,144.2,144.04,3.12292279]
[1768666623632,3.07759205,144.11,144.04,3.12292279]
[1768666624130,3.07759205,144.11,144.05,1.72675467]
[1768666624339,3.07759205,144.13,144.06,3.12292279]
[1768666624541,3.07759205,144.13,144.05,1.72675467]
[1768666624542,9.32439205,144.13,144.08,3.12292279]
[1768666625337,9.32439205,144.13,144.09,0.05027472]
[1768666625832,11.05024672,144.15,144.09,0.05027472]
[1768666626041,11.05024672,144.15,144.09,3.17319751]
[1768666634548,3.07759205,144.14,144.09,3.17319751]
[1768666638953,9.32379205,144.14,144.09,3.17319751]
[1768666643257,11.05054672,144.14,144.09,3.17319751]
[1768666647459,9.32379205,144.14,144.09,3.17319751]
[1768666657278,3.22723086,144.17,144.09,3.17319751]
[1768666657472,3.22723086,144.17,144.09,4.89984332]
[1768666657673,3.22723086,144.17,144.1,3.10057376]
[1768666657874,380.0283,144.22,144.11,1.72664581]
[1768666657875,9.47143086,144.19,144.11,1.72664581]
[1768666658079,3.22723086,144.21,144.12,3.10057376]
[1768666658382,11.19717667,144.21,144.13,3.10057376]
[1768666658572,11.19717667,144.21,144.15,3.10057376]
[1768666658875,9.47053086,144.21,144.15,3.10057376]
[1768666660379,3.22723086,144.19,144.14,0.04763751]
[1768666661470,4.95387667,144.18,144.14,0.04763751]
[1768666665980,4.95387667,144.18,144.13,3.10057376]
[1768666665981,3.22723086,144.17,144.1,264.44057376]
[1768666666278,4.95387667,144.16,144.1,3.10057376]
[1768666670778,3.22723086,144.16,144.1,3.10057376]
[1768666680583,9.47253086,144.16,144.1,3.10057376]
[1768666680784,3.28080114,144.15,144.1,3.10057376]
[1768666680986,3.28080114,144.15,144.08,3.28483189]
[1768666681188,5.00744695,144.14,144.08,3.28483189]
[1768666682886,11.25354695,144.14,144.08,3.28483189]
[1768666686695,5.00744695,144.14,144.08,3.28483189]
[1768666686990,0.0452806,144.12,144.08,3.28483189]
[1768666728421,0.0452806,144.12,144.06,199.60898855]
[1768666729823,0.0452806,144.12,144.07,3.29276052]
[1768666745346,6.2455,144.16,144.09,3.29208934]
[1768666745546,4.95859043,144.18,144.1,3.29208934]
[1768666745849,4.95859043,144.2,144.11,3.29208934]
[1768666746041,11.20239043,144.2,144.13,3.29208934]
[1768666746239,3.23184946,144.2,144.14,3.29208934]
[1768666746448,3.23184946,144.19,144.14,3.29208934]
[1768666746846,3.23184946,144.19,144.16,0.05300964]
[1768666747248,0.04971875,144.18,144.14,3.29208934]
[1768666749650,0.04971875,144.18,144.12,264.67208934]
[1768666750151,0.04971875,144.18,144.13,3.29208934]
[1768666758660,6.29411875,144.18,144.13,3.29208934]
[1768666764270,6.29411875,144.18,144.1,3.1859706]
[1768666764271,6.2453,144.16,144.1,3.1859706]
[1768666764671,9.47227064,144.16,144.1,3.1859706]
[1768666764968,4.95371161,144.16,144.1,3.1859706]
[1768666765169,0.04474167,144.14,144.1,3.1859706]
[1768666767868,0.04474167,144.14,144.08,1.72674097]
[1768666767869,3.27171231,144.14,144.08,3.1859706]
[1768666768275,0.04474167,144.14,144.08,3.1859706]
[1768666768467,0.04474167,144.14,144.1,3.1859706]
[1768666776976,0.04474167,144.14,144.07,4.86191214]
[1768666777179,0.04474167,144.14,144.08,3.13595808]
[1768666783177,6.29094167,144.14,144.08,3.13595808]
[1768666783776,8.01689573,144.14,144.08,3.13595808]
[1768666783989,6.2466,144.13,144.08,3.13595808]
[1768666788686,4.97524929,144.14,144.08,3.13595808]
[1768666788687,1.77069573,144.14,144.08,3.13595808]
[1768666789586,4.97524929,144.14,144.08,3.13595808]
[1768666790387,11.22134929,144.14,144.08,3.13595808]
[1768666790689,3.20455356,144.13,144.08,3.13595808]
[1768666794191,9.45115356,144.13,144.08,3.13595808]
[1768666796887,11.17710762,144.13,144.08,3.13595808]
[1768666798190,3.1361253,144.12,144.06,264.43913062]
[1768666799092,0.04808637,144.1,144.06,264.43913062]
[1768666801093,0.04808637,144.1,144.06,3.07913062]
[1768666818494,0.04808637,144.1,144.04,11.05528468]
[1768666818687,0.04808637,144.1,144.05,3.07913062]
[1768666829803,6.29598637,144.1,144.05,3.07913062]
[1768666830209,9.46245009,144.1,144.05,3.07913062]
[1768666832502,9.46245009,144.1,144.02,261.46]
[1768666833006,9.41436372,144.1,144.02,261.46]
[1768666833504,0.0528777,144.07,144.02,261.46]
[1768666834306,0.0528777,144.07,144.03,3.06356582]
[1768666841508,0.0528777,144.07,144.03,9.31426582]
[1768666841701,9.41436372,144.1,144.04,3.06356582]
[1768666842004,9.41436372,144.1,144.04,3.11459461]
[1768666844506,3.27663873,144.09,144.01,3.06356582]
[1768666844710,3.32984172,144.08,144.01,3.06356582]
[1768666845006,3.27663873,144.06,143.99,9.31606582]
[1768666845911,0.04991412,144.04,143.99,9.31606582]
[1768666847912,0.04991412,144.04,144.0,3.06356582]
[1768666860522,0.04991412,144.04,143.98,264.65241215]
[1768666860725,3.35686973,144.04,143.98,264.65241215]
[1768666862326,3.35686973,144.04,143.99,3.17241215]
[1768666862527,0.04991412,144.04,143.99,3.17241215]
[1768666866637,20.83,144.11,143.99,264.75241215]
[1768666866840,9.55505561,144.1,144.05,1.215e-05]
[1768666867133,9.55505561,144.1,144.01,1.72757175]
[1768666867335,9.55505561,144.1,144.0,6.2519]
[1768666867336,3.30695561,144.09,144.0,6.2519]
[1768666867528,3.30695561,144.09,144.01,1.72757175]
[1768666868137,3.30695561,144.09,144.04,0.04749428]
[1768666869440,3.30695561,144.06,143.99,3.17241215]
[1768666869629,5.03452736,144.06,143.99,3.17241215]
[1768666870935,0.04959028,144.04,143.99,3.17241215]
[1768666877055,3.30695561,144.03,143.96,3.17241215]
[1768666877853,3.30695561,144.03,143.97,3.17241215]
[1768666878051,0.05206667,144.01,143.97,3.17241215]
[1768666882654,0.05206667,144.01,143.95,3.15643106]
[1768666889055,1.77963842,144.01,143.95,3.15643106]
[1768666891458,1.78193384,144.01,143.95,3.15643106]
[1768666892361,11.06855487,144.01,143.95,3.15643106]
[1768666898565,9.3386877,144.01,143.95,3.15643106]
[1768666898770,1.72986717,144.0,143.95,3.15643106]
[1768666901870,4.8784584,144.0,143.95,3.15643106]
[1768666903162,9.40089123,144.0,143.95,3.15643106]
[1768666903362,1.72986717,143.99,143.95,3.15643106]
[1768666905363,11.1307584,144.0,143.95,3.15643106]
[1768666906163,9.40089123,144.0,143.95,3.15643106]
[1768666906371,11.1307584,144.0,143.95,3.15643106]
[1768666906869,11.1307584,144.0,143.93,281.03759361]
[1768666907069,11.1307584,144.0,143.94,3.05164933]
[1768666907774,0.05292694,143.98,143.94,3.05164933]
[1768666918877,3.11639568,143.98,143.93,281.20837536]
[1768666919274,0.05292694,143.98,143.94,3.22243108]
[1768666920874,0.05292694,143.98,143.93,277.98594428]
[1768666921079,4.84626285,143.98,143.93,277.98594428]
[1768666921577,4.84626285,143.98,143.93,281.20837536]
[1768666922790,3.06346874,143.97,143.93,5.81664428]
[1768666922978,4.79333591,143.97,143.91,3.22243108]
[1768666923175,3.06346874,143.97,143.91,3.22243108]
[1768666923982,1.78279411,143.98,143.88,3.22243108]
[1768666923983,3.06346874,143.96,143.88,3.22243108]
[1768666924183,3.06346874,143.95,143.89,264.94243108]
[1768666924876,3.06346874,143.95,143.89,3.22243108]
[1768666924877,0.04378731,143.93,143.89,3.22243108]
[1768666925082,0.04378731,143.93,143.89,227.76243108]
[1768666925480,0.04378731,143.93,143.87,195.02101768]
[1768666925481,3.10725605,143.93,143.87,3.22243108]
[1768666925682,3.10725605,143.93,143.88,261.72]
[1768666926690,3.10725605,143.93,143.87,3.22243108]
[1768666926892,3.10725605,143.93,143.87,264.96243108]
[1768666927480,9.36255605,143.93,143.87,264.96243108]
[1768666931982,9.31926874,143.92,143.87,264.96243108]
[1768666932482,6.2558,143.92,143.87,264.96243108]
[1768666933388,6.2558,143.92,143.84,1.72986717]
[1768666933586,6.2558,143.92,143.85,13.28]
[1768666934992,3.06346874,143.93,143.86,1.72986717]
[1768666935192,3.06346874,143.93,143.85,15.00986717]
[1768666935585,3.06346874,143.93,143.86,0.27954226]
[1768666936891,9.31876874,143.93,143.86,0.27954226]
[1768666937994,6.2553,143.93,143.86,0.27954226]
[1768666938191,6.2544,143.95,143.88,0.29220282]
[1768666938694,9.31786874,143.95,143.88,0.29220282]
[1768666942095,3.06346874,143.95,143.88,0.29220282]
[1768666942292,7.98346717,143.97,143.88,0.29220282]
[1768666942493,7.98346717,143.97,143.89,0.32964598]
[1768666944100,11.23583502,143.97,143.89,0.32964598]
[1768666945606,9.50596785,143.97,143.89,0.32964598]
[1768666945899,3.25236785,143.96,143.89,0.32964598]
[1768666946101,3.25236785,143.94,143.89,0.32964598]
[1768666948401,3.25236785,143.94,143.87,0.36337395]
[1768666948596,3.25236785,143.93,143.85,0.36337395]
[1768666949100,3.29874657,143.92,143.85,0.36337395]
[1768666951398,3.29874657,143.92,143.84,6.2589]
[1768666951705,3.29874657,143.92,143.85,0.37944835]
[1768666953107,3.35555893,143.91,143.85,0.37944835]
[1768666953403,3.35555893,143.9,143.83,0.40039741]
[1768666955199,97.3015,143.94,143.83,0.40039741]
[1768666955200,0.04756114,143.88,143.83,0.40039741]
[1768666961214,3.40312007,143.88,143.78,0.43880689]
[1768666961397,3.35555893,143.87,143.79,0.43880689]
[1768666961599,3.35555893,143.87,143.78,261.84]
[1768666961600,3.35555893,143.87,143.81,0.43880689]
[1768666962003,0.04673943,143.85,143.81,0.43880689]
[1768666966013,0.04673943,143.85,143.79,1.73251427]
[1768666966216,3.40229836,143.85,143.8,261.84]
[1768666966417,3.40229836,143.85,143.79,0.45668862]
[1768666970408,1.73251427,143.84,143.77,261.86]
[1768666970608,1.73251427,143.84,143.76,0.47798302]
[1768666970609,3.35555893,143.83,143.76,0.47798302]
[1768666970814,3.40229836,143.85,143.78,0.47798302]
[1768666971014,3.35555893,143.85,143.78,0.47798302]
[1768666971415,0.04479391,143.83,143.78,0.47798302]
[1768666972317,3.35113727,143.83,143.75,0.48502736]
[1768666972624,0.04479391,143.83,143.78,1.73251427]
[1768666972920,3.30634336,143.84,143.78,0.48502736]
[1768666973119,3.30634336,143.84,143.78,2.21754163]
[1768666973318,0.04496713,143.82,143.78,2.21754163]
[1768666973719,0.04496713,143.82,143.78,8.47894163]
[1768666974020,0.04496713,143.82,143.79,0.4890209]
[1768666974323,3.30634336,143.86,143.79,0.54169563]
[1768666975629,3.30634336,143.83,143.76,6.2626]
[1768666975923,3.30634336,143.83,143.76,6.81218084]
[1768666977025,0.05095939,143.81,143.76,6.81218084]
[1768666977227,3.35730275,143.81,143.74,6.82085097]
[1768666977419,3.35730275,143.81,143.74,8.55336524]
[1768666977625,3.35730275,143.81,143.75,0.55755097]
[1768666977924,3.30634336,143.81,143.75,0.55755097]
[1768666978327,0.05021172,143.79,143.75,0.55755097]
[1768666978926,3.35655508,143.79,143.72,0.5614338]
[1768666979127,0.05021172,143.79,143.74,0.5614338]
[1768666979327,0.05021172,143.79,143.74,2.29394807]
[1768666979625,3.30634336,143.81,143.74,2.29394807]
[1768666979827,0.04939078,143.78,143.74,2.29394807]
[1768666980027,0.04939078,143.78,143.72,0.56527282]
[1768666980721,97.3673,143.84,143.7,0.56907375]
[1768666980722,3.30634336,143.76,143.7,0.56907375]
[1768666981527,0.0446882,143.74,143.7,0.56907375]
[1768666984436,5.03885763,143.81,143.72,0.53919429]
[1768666984638,5.03885763,143.81,143.73,0.53919429]
[1768666985138,3.30634336,143.81,143.73,0.53919429]
[1768666985329,5.03885763,143.81,143.73,0.53919429]
[1768666985529,3.30634336,143.8,143.73,0.53919429]
[1768666986031,5.03885763,143.82,143.74,1.73251427]
[1768666986233,3.30634336,143.82,143.75,0.54287283]
[1768666986436,3.30634336,143.82,143.75,0.59547584]
[1768666987736,3.30634336,143.82,143.76,6.81248088]
[1768666988333,5.03885763,143.84,143.77,6.8155387]
[1768666988640,1.73251427,143.82,143.75,0.60634171]
[1768666988936,5.03885763,143.82,143.75,0.5537387]
[1768666989840,5.03885763,143.82,143.75,6.8166387]
[1768666990541,3.30634336,143.82,143.75,6.8166387]
[1768666991135,3.30634336,143.82,143.76,6.2624]
[1768666991331,5.03885763,143.8,143.73,0.56419088]
[1768666991931,3.30634336,143.8,143.73,0.56419088]
[1768666992138,3.30634336,143.8,143.7,0.56419088]
[1768666992441,3.30634336,143.78,143.7,2.29670515]
[1768666992630,3.30634336,143.78,143.7,0.56419088]
[1768666993540,5.03885763,143.78,143.7,0.56419088]
[1768666994339,3.30634336,143.78,143.7,0.56419088]
[1768666994536,3.30634336,143.77,143.7,0.56419088]
[1768666994832,3.30634336,143.71,143.58,0.57440879]
[1768666995039,3.30634336,143.7,143.61,2.30692306]
[1768666995229,3.30634336,143.7,143.62,0.57773003]
[1768666995638,1.73251427,143.72,143.62,0.57773003]
[1768666995940,3.30634336,143.73,143.64,0.57773003]
[1768666996134,5.03885763,143.73,143.64,0.57773003]
[1768666996536,3.30634336,143.72,143.61,0.58098714]
[1768666996737,3.30634336,143.7,143.61,0.58098714]
[1768666997938,1.73251427,143.69,143.61,0.58098714]
[1768666998133,3.30634336,143.69,143.61,0.58098714]
[1768666998539,3.30634336,143.69,143.62,0.58743048]
[1768666998733,3.30634336,143.69,143.64,0.05028942]
[1768667000339,3.30634336,143.69,143.62,0.58743048]
[1768667000340,0.04829019,143.68,143.62,0.58743048]
[1768667001547,3.30634336,143.72,143.64,0.59695878]
[1768667001744,3.30634336,143.72,143.65,0.55277054]
[1768667001949,1.73251427,143.74,143.65,0.55277054]
[1768667002141,3.43287188,143.75,143.65,0.55277054]
[1768667002446,3.43287188,143.75,143.66,2.28840066]
[1768667003241,5.16538615,143.75,143.66,2.28840066]
[1768667003844,3.43287188,143.75,143.67,0.55895747]
[1768667004144,5.16538615,143.75,143.67,0.55895747]
[1768667004940,3.43287188,143.75,143.67,0.55895747]
[1768667008250,3.43287188,143.75,143.67,2.29147174]
[1768667008451,3.43287188,143.75,143.67,0.55895747]
[1768667009446,3.43287188,143.75,143.66,1.73251427]
[1768667009447,3.43287188,143.75,143.69,6.2654]
[1768667010046,5.16538615,143.75,143.69,6.2654]
[1768667010544,3.43287188,143.75,143.69,6.2654]
[1768667010849,5.16538615,143.75,143.69,6.2654]
[1768667013042,1.73251427,143.76,143.7,6.265]
[1768667013450,1.73251427,143.77,143.69,0.5891386]
[1768667013945,3.36899862,143.78,143.69,0.5891386]
[1768667014147,1.73251427,143.77,143.69,0.5891386]
[1768667014646,3.36899862,143.78,143.69,0.5891386]
[1768667014854,1.73251427,143.77,143.71,6.2646]
[1768667015352,5.10419334,143.78,143.72,6.2641]
[1768667015753,3.36899862,143.8,143.71,0.59719182]
[1768667015949,1.73519472,143.79,143.71,0.59719182]
[1768667016647,3.36899862,143.8,143.71,0.59719182]
[1768667016853,1.73519472,143.79,143.73,6.2637]
[1768667019256,3.36899862,143.8,143.73,6.2637]
[1768667019457,1.73519472,143.79,143.73,6.2637]
[1768667022956,3.36899862,143.8,143.73,0.61480562]
[1768667023757,3.36899862,143.8,143.75,6.2629]
[1768667024663,3.36899862,143.8,143.76,6.2624]
[1768667025356,1.73519472,143.81,143.76,6.2624]
[1768667025661,5.10419334,143.81,143.76,6.2624]
[1768667026653,3.36899862,143.81,143.76,6.2624]
[1768667026859,5.10419334,143.81,143.76,6.2624]
[1768667028461,3.36899862,143.81,143.76,6.2624]
[1768667028661,1.73519472,143.8,143.76,6.2624]
[1768667029158,5.10419334,143.8,143.76,6.2624]
[1768667029364,3.36899862,143.8,143.76,6.2624]
[1768667029661,5.10419334,143.8,143.76,6.2624]
[1768667030454,3.36899862,143.8,143.76,6.2624]
[1768667030656,5.10419334,143.8,143.76,6.2624]
[1768667031858,3.36899862,143.8,143.71,97.4497]
[1768667032058,118.1748,143.87,143.71,0.63623409]
[1768667032059,5.01920005,143.78,143.71,0.63623409]
[1768667033057,3.28400533,143.77,143.71,0.63623409]
[1768667033458,1.73519472,143.76,143.71,0.63623409]
[1768667034966,3.28400533,143.77,143.71,0.63623409]
[1768667039959,3.28400533,143.79,143.71,0.63623409]
[1768667042263,3.28400533,143.79,143.73,6.2638]
[1768667044267,3.28400533,143.79,143.74,6.2634]
[1768667046467,3.28400533,143.79,143.72,6.92479397]
[1768667047368,3.28400533,143.79,143.73,6.2638]
[1768667047670,3.28400533,143.79,143.73,266.9038]
[1768667048564,3.28400533,143.79,143.75,0.04553269]
[1768667049466,0.04406339,143.78,143.75,0.04553269]
[1768667050068,3.32806872,143.78,143.75,0.04553269]
[1768667050277,3.32806872,143.78,143.73,266.9038]
[1768667051776,3.32806872,143.78,143.71,6.2644]
[1768667052075,3.32806872,143.78,143.7,0.72092332]
[1768667052076,1.73519472,143.77,143.7,0.72092332]
[1768667052269,3.28400533,143.76,143.7,261.36092332]
[1768667052873,0.04964989,143.74,143.7,267.62602332]
[1768667055776,3.33365522,143.74,143.68,6.99391343]
[1768667055967,3.33365522,143.74,143.69,260.66]
[1768667057373,3.33365522,143.74,143.65,0.73143599]
[1768667057578,3.33365522,143.74,143.66,260.66]
[1768667057579,5.01920005,143.73,143.66,260.66]
[1768667058379,0.04388855,143.71,143.66,260.66]
[1768667059583,3.32789388,143.71,143.63,0.73485955]
[1768667059783,5.0630886,143.71,143.64,260.68]
[1768667060177,5.01920005,143.71,143.64,260.68]
[1768667060584,0.04421491,143.69,143.64,260.68]
[1768667060783,0.04421491,143.69,143.64,266.9474]
[1768667061290,0.04421491,143.69,143.64,267.68564847]
[1768667062198,0.04421491,143.69,143.65,260.7]
[1768667063797,3.28400533,143.71,143.65,263.18090555]
[1768667064192,3.28400533,143.71,143.65,261.44571083]
[1768667064890,3.28400533,143.71,143.65,267.71281083]
[1768667067509,3.28400533,143.71,143.67,0.04586237]
[1768667071708,3.54418664,143.75,143.67,0.04586237]
[1768667072007,3.54418664,143.75,143.67,0.80333692]
[1768667072305,3.54418664,143.73,143.65,0.75886531]
[1768667072496,3.54418664,143.73,143.66,260.78]
[1768667072692,3.54418664,143.73,143.66,267.0468]
[1768667073096,0.0456431,143.7,143.66,267.0468]
[1768667074904,3.54418664,143.73,143.66,267.0468]
[1768667075504,3.54418664,143.73,143.66,267.85902625]
[1768667076205,3.54418664,143.73,143.68,0.04609994]
[1768667077602,3.51315632,143.74,143.68,0.86119454]
[1768667078106,3.51315632,143.74,143.68,0.04609994]
[1768667081514,3.51315632,143.74,143.69,260.8]
[1768667084312,3.51315632,143.76,143.69,267.88965873]
[1768667084814,3.51315632,143.76,143.69,263.36060068]
[1768667085718,3.51315632,143.76,143.71,0.04630539]
[1768667090024,3.51315632,143.76,143.71,6.31100539]
[1768667090818,3.51315632,143.76,143.72,6.2642]
[1768667091023,7.99674195,143.82,143.72,0.83134969]
[1768667091423,7.99674195,143.82,143.73,1.73644195]
[1768667091716,6.2603,143.82,143.74,260.78]
[1768667092020,7.99674195,143.82,143.74,267.0433]
[1768667092919,3.31574379,143.81,143.74,267.0433]
[1768667093423,3.31574379,143.81,143.77,0.04502117]
[1768667097820,5.05218574,143.81,143.74,260.78]
[1768667098019,3.31574379,143.8,143.73,260.76]
[1768667098214,3.36141039,143.8,143.73,260.76]
[1768667100426,3.36141039,143.8,143.73,260.74]
[1768667101828,3.36141039,143.8,143.73,267.0038]
[1768667102423,3.31574379,143.82,143.74,3.45763672]
[1768667102628,3.31574379,143.82,143.75,5.19407867]
[1768667103829,3.31574379,143.82,143.75,11.45697867]
[1768667104231,3.31574379,143.82,143.77,0.04640691]
[1768667104927,3.31574379,143.82,143.77,6.30820691]
[1768667106628,3.31574379,143.86,143.79,9.71853672]
[1768667107024,3.31574379,143.86,143.79,11.45497867]
[1768667108132,3.31574379,143.86,143.81,0.04680667]
[1768667110630,3.31574379,143.89,143.82,3.45763672]
[1768667110831,3.31574379,143.89,143.83,5.19407867]
[1768667111933,3.31574379,143.89,143.83,11.45337867]
[1768667112331,3.31574379,143.89,143.85,0.04615288]
[1768667120637,3.31574379,143.91,143.85,0.04615288]
[1768667121331,3.31574379,143.91,143.85,6.30455288]
[1768667126142,3.31574379,143.91,143.85,0.04615288]
[1768667127542,3.53095043,143.89,143.85,0.04615288]
[1768667128046,3.53095043,143.89,143.82,263.97830764]
[1768667128871,3.53095043,143.89,143.84,0.04402852]
[1768667129043,9.78805043,143.89,143.84,0.04402852]
[1768667129247,3.53095043,143.88,143.84,0.04402852]
[1768667130849,6.2571,143.89,143.84,0.04402852]
[1768667130850,3.53095043,143.92,143.85,3.37830764]
[1768667132853,3.53095043,143.92,143.85,9.63660764]
[1768667133463,3.53095043,143.92,143.87,0.04689637]
[1768667134361,3.55169528,143.91,143.87,0.04689637]
[1768667137563,3.55169528,143.93,143.87,1.78333832]
[1768667138154,3.55169528,143.93,143.87,11.64883872]
[1768667138952,3.55169528,143.95,143.88,3.6079004]
[1768667139560,9.80609528,143.95,143.88,3.6079004]
[1768667139756,3.55169528,143.94,143.88,3.6079004]
[1768667140864,3.55169528,143.93,143.86,5.33909168]
[1768667141064,3.55169528,143.93,143.86,3.6079004]
[1768667141563,3.55169528,143.93,143.88,0.04448233]
[1768667142767,9.80699528,143.93,143.88,0.04448233]
[1768667143165,3.55169528,143.92,143.88,0.04448233]
[1768667145965,3.55169528,143.92,143.84,5.33909168]
[1768667146168,0.05269611,143.91,143.84,5.33909168]
[1768667146369,3.60439139,143.91,143.84,5.33909168]
[1768667147365,3.60439139,143.91,143.84,3.6079004]
[1768667147566,3.55169528,143.9,143.84,3.6079004]
[1768667147964,3.55169528,143.9,143.81,272.13919168]
[1768667148766,9.80839528,143.9,143.81,272.13919168]
[1768667148969,0.05189435,143.87,143.81,272.13919168]
[1768667149673,0.05189435,143.87,143.81,270.4080004]
[1768667150469,0.05189435,143.87,143.81,272.13919168]
[1768667153273,0.05189435,143.87,143.81,270.4080004]
[1768667153670,0.05189435,143.87,143.81,272.13919168]
[1768667153876,0.05189435,143.87,143.81,265.87909168]
[1768667154778,0.05189435,143.87,143.81,264.1479004]
[1768667154979,3.65731278,143.87,143.81,264.1479004]
[1768667156669,3.65731278,143.87,143.82,3.42546766]
[1768667157181,0.05189435,143.87,143.82,3.42546766]
[1768667158474,6.30979435,143.87,143.82,3.42546766]
[1768667160874,6.2584,143.86,143.82,3.42546766]
[1768667163184,6.2587,143.85,143.82,3.42546766]
[1768667164982,6.2587,143.85,143.82,6.766e-05]
[1768667165578,6.2592,143.84,143.82,6.766e-05]
[1768667165776,0.05189435,143.87,143.8,1.73119128]
[1768667165777,100.95991843,143.86,143.8,1.73119128]
[1768667166082,100.95991843,143.86,143.75,1.73119128]